[Event "10th Cherry Blossom Classic 2023"]
[Site "Dulles"]
[Date "2023.05.28"]
[Round "5.3"]
[White "Durarbayli, Vasif"]
[Black "Druska, Juraj"]
[Result "1-0"]
[ECO "C18"]
[WhiteElo "2627"]
[BlackElo "2496"]
[Annotator "TA"]
[PlyCount "85"]
[EventDate "2023.05.24"]
[EventType "swiss"]
[EventCountry "USA"]
[SourceTitle "playchess.com"]
[Source "ChessBase"]
[SourceQuality "1"]
[TimeControl "5400+30"]

{[%evp 13,85,20,54,44,48,40,31,41,27,25,56,16,18,16,37,32,46,34,44,38,41,39,42,18,21,27,28,29,37,24,37,22,44,47,39,38,53,36,58,54,43,44,50,39,67,66,101,92,154,156,213,225,247,190,206,204,241,233,226,160,162,169,246,246,335,290,402,399,426,387,609,587,568,541]} 1. e4 {[%emt 0:00:01]} e6 {[%emt 0:09:45]} 2. d4 {[%emt 0:00:21]} d5 {[%emt 0:00:04]} 3. Nc3 {[%emt 0:00:03]} Bb4 {[%emt 0:00:42]} 4. e5 {[%emt 0:00:08]} c5 {[%emt 0:00:04]} 5. a3 {[%emt 0:00:03]} Bxc3+ {[%emt 0:00:03]} 6. bxc3 {[%emt 0:00:05]} Nc6 {[%emt 0:00:04]} 7. Qg4 {[%emt 0:04:11]} g6 {[%emt 0:00:06]} 8. Qf4 $5 {[%emt 0:05:12][%mdl 4] An interesting side line. C18: French: 3 Nc3 Bb4: Main line: 7 h4 and 7 Qg4.} ({Much worse is} 8. dxc5 Nxe5 9. Bb5+ Bd7 $15) 8... h6 {[%emt 0:09:57]} 9. dxc5 {[%emt 0:10:19]} Qa5 {[%emt 0:01:15]} 10. Bd2 {[%emt 0:03:29] White is slightly better.} Qxc5 {[%emt 0:01:27]} 11. Nf3 {[%emt 0:02:17]} Bd7 {[%emt 0:02:01] [#]} 12. Nd4 $146 {[%emt 0:07:59]} (12. h4 {seems wilder.} O-O-O 13. Bd3 g5 14. Qxf7 g4 15. Nd4) ({Predecessor:} 12. h4 Nge7 13. Bd3 O-O-O 14. O-O Nf5 15. g3 Rdg8 16. Qg4 g5 17. h5 Nh4 18. Nd4 Nxe5 {1-0 Smirnov,A (2549)-Rodriguez Vila,A (2477) Olympiad-43 Batumi 2018 (11.1)}) 12... Nxd4 {[%emt 0:08:27]} 13. Qxd4 {[%emt 0:00:18]} Qxd4 {[%emt 0:17:56]} 14. cxd4 {[%emt 0:00:08]} Ne7 {[%emt 0:00:06] Black is weak on the dark squares} 15. Rb1 {[%emt 0:01:26]} b6 {[%emt 0:09:08]} 16. Ba6 {[%emt 0:02:36]} Nc6 {[%emt 0:01:21]} 17. Bc3 {[%emt 0:01:24]} O-O {[%emt 0:02:46]} 18. Kd2 {[%emt 0:03:24]} f6 {[%emt 0:01:57]} 19. exf6 {[%emt 0:00:29]} Rxf6 {[%emt 0:00:01]} 20. f3 {[%emt 0:00:06]} g5 {[%emt 0:10:29]} 21. Rbf1 {[%emt 0:02:15]} Raf8 {[%emt 0:04:40]} 22. Be2 {[%emt 0:06:40]} Kg7 {[%emt 0:03:01]} 23. h4 {[%emt 0:00:19]} Be8 {[%emt 0:03:07]} 24. Rh3 {[%emt 0:05:10]} gxh4 {[%emt 0:05:22]} 25. Rxh4 {[%emt 0:00:02]} Rf4 {[%emt 0:00:04]} 26. Rxf4 {[%emt 0:02:01]} Rxf4 {[%emt 0:00:02]} 27. Ke3 {[%emt 0:00:24]} Rf8 {[%emt 0:00:38]} 28. Rc1 {[%emt 0:01:22]} Bg6 {[%emt 0:00:15]} 29. Be1 {[%emt 0:02:33]} Rc8 {[%emt 0:00:30]} 30. Ba6 {[%emt 0:00:29]} Re8 {[%emt 0:03:26]} ({Better is} 30... Rd8) 31. c4 $16 {[%emt 0:02:58]} Nb8 {[%emt 0:06:42] [#]} (31... Ne7 $16 32. Ke2 h5) 32. Bb7 $1 $18 {[%emt 0:04:30] c5 is the strong threat.} Re7 {[%emt 0:00:02]} 33. Ba8 {[%emt 0:00:05]} dxc4 {[%emt 0:00:58]} 34. Rxc4 {[%emt 0:00:09]} Nd7 {[%emt 0:00:32]} 35. Rc7 {[%emt 0:00:14][%cal Oa8c6] And now Bc6! would win.} Rf7 {[%emt 0:00:22]} 36. Rxa7 {[%emt 0:02:17]} Nf6 {[%emt 0:00:01]} 37. Ra6 {[%emt 0:00:43]} Rc7 {[%emt 0:00:41]} (37... Nd5+ $142 38. Bxd5 exd5 39. Rxb6 Re7+ 40. Kd2 Kf7) 38. Rxb6 {[%emt 0:00:41]} Rc2 {[%emt 0:00:11]} 39. g4 {[%emt 0:01:44]} Ra2 {[%emt 0:00:13]} 40. Bb4 {[%emt 0:00:23]} ({And not} 40. Rxe6 Rxa3+ $17) 40... h5 {[%emt 0:00:07]} 41. gxh5 {[%emt 0:00:30]} ({Much less strong is} 41. Rxe6 hxg4 42. fxg4 Nxg4+ 43. Kf4 Nf2 $18) 41... Nxh5 {[%emt 0:01:04]} (41... Bf5 $142 42. Be4 Nd5+ 43. Bxd5 exd5) 42. Rxe6 {[%emt 0:00:40]} Ng3 {[%emt 0:00:05] [#] White must now prevent ...Re2+.} 43. Be4 {[%emt 0:02:08] Weighted Error Value: White=0.09 (flawless) /Black=0.27 (precise)} 1-0

[Event "10th Cherry Blossom Classic 2023"]
[Site "Dulles"]
[Date "2023.05.28"]
[Round "5.4"]
[White "Ouellet, Maili-Jade"]
[Black "Burke, John M"]
[Result "0-1"]
[ECO "D47"]
[WhiteElo "2246"]
[BlackElo "2583"]
[Annotator "TA"]
[PlyCount "84"]
[EventDate "2023.05.24"]
[EventType "swiss"]
[EventCountry "USA"]
[SourceTitle "playchess.com"]
[Source "ChessBase"]
[SourceQuality "1"]
[TimeControl "5400+30"]

{[%evp 24,84,23,8,36,8,46,46,46,41,39,25,60,64,58,74,89,0,43,36,120,0,0,0,0,-51,9,-42,-38,-102,-94,-97,-66,-73,-43,-42,-10,0,-14,-14,-11,-321,-314,-644,-643,-622,-608,-662,-629,-577,-412,-472,-452,-421,-435,-389,-350,-29989,-29990,-29990,-29983,-5297,-590]} 1. d4 {[%emt 0:00:01]} d5 {[%emt 0:01:09]} 2. c4 {[%emt 0:00:05]} e6 {[%emt 0:00:24]} 3. Nc3 {[%emt 0:00:05]} c6 {[%emt 0:00:18]} 4. e3 {[%emt 0:00:07][%cal Be2e3,Be3e4,Be4e5][%mdl 32]} Nf6 {[%emt 0:00:24]} 5. Nf3 {[%emt 0:00:05]} Nbd7 {[%emt 0:00:20]} 6. Bd3 {[%emt 0:00:07]} dxc4 {[%emt 0:00:13]} 7. Bxc4 {[%emt 0:00:05]} b5 {[%emt 0:00:04][%cal Bb7b5,Bb5b4][%mdl 32]} 8. Bd3 {[%emt 0:00:04]} Bb7 {[%emt 0:01:22]} 9. e4 {[%emt 0:00:13]} b4 {[%emt 0:00:55]} 10. Na4 {[%emt 0:00:07]} c5 {[%emt 0:00:04]} 11. e5 {[%emt 0:00:19]} Nd5 {[%emt 0:00:07]} 12. O-O {[%emt 0:00:14]} cxd4 {[%emt 0:01:41]} 13. Nxd4 {[%emt 0:00:08] is recently more successful than 13.Re1.} g6 {[%emt 0:09:07] D47: Semi-Slav: Meran System.} 14. Qg4 {[%emt 0:10:09][%cal Od4e6]} (14. Bb5 a6 15. Bxd7+ Qxd7 $15) 14... Qa5 {[%emt 0:33:18][%cal Od7e5]} (14... Nxe5 15. Bb5+ $14) (14... h5 $5 {[%cal Rh5g4]} 15. Qh3 Qa5 $11) 15. Bb5 {[%emt 0:14:04] [#]} a6 $146 {[%emt 0:12:19] White is slightly better.} ({Predecessor:} 15... Ba6 16. Bxd7+ Kxd7 17. Rd1 Qxa4 18. Nxe6 fxe6 19. Rxd5+ Kc7 20. Qxe6 Re8 21. Qf7+ Kb8 {1-0 Sundararajan,K (2497)-Sasikiran,K (2663) Asia-ch 5th Hyderabad 2005 (5)}) 16. Bxd7+ {[%emt 0:01:32]} Kxd7 {[%emt 0:00:03]} 17. b3 {[%emt 0:00:27]} Be7 {[%emt 0:01:31]} 18. Bg5 {[%emt 0:04:13]} Bxg5 {[%emt 0:04:52]} 19. Qxg5 {[%emt 0:01:56]} Rac8 {[%emt 0:00:05]} 20. Rac1 {[%emt 0:16:07]} (20. Nb2 $16) 20... h6 {[%emt 0:03:13]} 21. Qd2 {[%emt 0:02:18]} g5 {[%emt 0:00:32] [#]} (21... Rxc1 $14 22. Rxc1 Rc8) 22. Rxc8 {[%emt 0:06:00]} (22. Nc2 $1 $16 {[%cal Rc2e3]}) 22... Rxc8 $11 {[%emt 0:00:11]} 23. h4 {[%emt 0:01:52]} gxh4 {[%emt 0:03:11]} 24. Qxh6 {[%emt 0:02:39]} (24. Kh2 $11) 24... Rg8 {[%emt 0:00:41]} ({Black should try} 24... Kc7 $1 $15) 25. Rd1 {[%emt 0:14:51]} (25. Qxh4 Ne3 26. g3 (26. fxe3 $2 Rxg2+ 27. Kh1 Rg4+ {[%mdl 64] Discovered Attack} 28. Kh2 Rxh4+ $19) 26... Nxf1 $19) (25. f3 $11) 25... Kc8 $15 {[%emt 0:06:14][%cal Bd7c8,Bc8b8,Bb8a8][%mdl 32] ...Nc3 is the strong threat. Dancing on a razor blade.} 26. Rd3 {[%emt 0:19:39]} (26. Nxe6 Nc3 27. Nf4 (27. Nxc3 $2 bxc3 28. Qh7 Rxg2+ 29. Kf1 Kb8 $19) 27... Nxd1 $17) ({White should play} 26. Qh7 $15 Rxg2+ 27. Kf1) 26... Qc7 $17 {[%emt 0:05:18]} 27. Nf3 {[%emt 0:00:35]} Qc2 {[%emt 0:01:29][%csl LRa2,LRd3]} 28. Rd4 {[%emt 0:01:31] Rc4+ would be deadly.} Kb8 {[%emt 0:02:23]} (28... Qxa2 29. Qh7 Ne7 30. Qxf7 Qa1+ 31. Kh2 $11) 29. Qxh4 {[%emt 0:00:57]} Qxa2 {[%emt 0:03:59]} (29... a5 $5 {[%cal Rb7c6]}) 30. Nc5 {[%emt 0:00:33] And now Qh7 would win.} Qb1+ $40 {[%emt 0:01:19][%mdl 128] Black is up to no good.} 31. Kh2 {[%emt 0:00:18]} Qg6 {[%emt 0:00:13][%csl Gg8][%cal Rg6g2]} 32. g3 {[%emt 0:01:39][%mdl 8192] Now White is beyond hope.} (32. Qh3 $11 {and White has nothing to worry.}) 32... Qc2 $1 $19 {[%emt 0:00:49][%csl LRc5,LRf2]} 33. Nd7+ $2 {[%emt 0:01:28]} (33. Ne4 Qxb3 34. Qh5) 33... Ka8 {[%emt 0:00:26]} 34. Nd2 {[%emt 0:01:53]} Qc6 {[%emt 0:02:28] Threatens to win with ...Ne3.} 35. Rxd5 {[%emt 0:00:57]} exd5 {[%emt 0:00:04]} 36. Nf6 {[%emt 0:00:19] [#]} d4 $1 {[%emt 0:00:11][%csl Gb7][%cal Rc6h1]} 37. f3 {[%emt 0:00:37]} Rc8 {[%emt 0:00:58]} 38. Qxd4 {[%emt 0:00:30]} Qc3 {[%emt 0:01:07]} 39. Qd6 {[%emt 0:00:19]} Qe3 {[%emt 0:01:24] aiming for ...Rc2.} (39... Bxf3 40. Qxa6+ Kb8 41. Nd7+ Kc7 42. Qd6+ Kb7 43. Qb6+ Ka8 44. Qa6#) 40. g4 $2 {[%emt 0:00:35]} (40. Nfe4 $19 Qe2+ 41. Kh3) 40... Qf2+ {[%emt 0:00:33]} (40... Bxf3 41. Qxa6+ Kb8 42. Nd7+ Kc7 43. Qd6+ Kb7 44. Qxb4+ Kc6 45. Qc4+ Kxd7 46. Qxf7+ Kc6 47. Qxf3+ (47. Nxf3 Qf2+ 48. Kh3 Rh8+) 47... Qxf3 48. Nxf3 $11) 41. Kh3 {[%emt 0:00:14]} Rh8+ {[%emt 0:00:03]} (41... Bxf3 42. Qxa6+ Kb8 43. Nd7+ Kc7 44. Qd6+ Kb7 45. Qxb4+ Kc7 46. Qd6+ Kb7 47. Qb4+ Kc6 48. Qc4+ (48. Nb8+ Kc7 $15) 48... Kb7 49. Qb4+ $11) 42. Nh5 {[%emt 0:00:07] [#]} Rxh5+ $1 {[%emt 0:00:04][%mdl 512] A cool game by Burke.   Weighted Error Value: White=0.68/Black=0.24 (precise)} 0-1

[Event "10th Cherry Blossom Classic 2023"]
[Site "Dulles"]
[Date "2023.05.28"]
[Round "5.5"]
[White "Khanin, Semen"]
[Black "Stearman, Josiah"]
[Result "1-0"]
[ECO "D35"]
[WhiteElo "2566"]
[BlackElo "2385"]
[Annotator "TA"]
[PlyCount "81"]
[EventDate "2023.05.24"]
[EventType "swiss"]
[EventCountry "USA"]
[SourceTitle "playchess.com"]
[Source "ChessBase"]
[SourceQuality "1"]
[TimeControl "5400+30"]

{[%evp 9,80,3,31,32,33,33,24,29,27,24,16,8,33,31,45,39,40,22,46,43,64,64,47,22,37,0,11,22,29,25,23,23,50,50,47,30,34,0,0,0,0,0,0,0,0,0,0,0,22,0,0,0,4,11,143,125,495,493,6303,6299,29991,29992,29992,29993,29993,29994,29995,29996,29996,29997,29998,29999,29999]} 1. d4 {[%emt 0:00:33]} Nf6 {[%emt 0:08:02]} 2. c4 {[%emt 0:00:03]} e6 {[%emt 0:00:04]} 3. Nc3 {[%emt 0:00:05]} d5 {[%emt 0:00:10]} 4. cxd5 {[%emt 0:00:06]} exd5 {[%emt 0:00:03]} 5. Bg5 {[%emt 0:00:07]} Be6 {[%emt 0:00:08]} 6. e3 {[%emt 0:01:50] D35: Queen's Gambit Declined: Exchange Variation.} Nbd7 {[%emt 0:00:10]} 7. Bd3 {[%emt 0:02:05]} c6 {[%emt 0:00:24]} 8. h3 {[%emt 0:05:20] White has an edge.} Be7 {[%emt 0:01:00]} 9. Bf4 {[%emt 0:05:03]} O-O {[%emt 0:02:24]} 10. Nf3 {[%emt 0:00:14]} h6 {[%emt 0:00:55]} 11. O-O {[%emt 0:01:23]} Nb6 {[%emt 0:01:39]} 12. Ne5 {[%emt 0:04:39]} (12. Rc1 {simplifies} Rc8 13. Qe2 Re8 14. Rfd1) 12... Nfd7 {[%emt 0:01:01]} 13. Qh5 {[%emt 0:10:42][%cal Of4h6] [#]} Nxe5 $146 {[%emt 0:02:39]} ({Predecessor:} 13... Nf6 14. Qe2 Nfd7 15. Rad1 Nxe5 16. Bxe5 Bf6 17. f4 Bxe5 18. dxe5 f5 19. exf6 Qxf6 {1-0 Injac,T (2284)-Skou,N (2036) Gibraltar Masters 18th 2020 (2)}) 14. dxe5 {[%emt 0:02:33][%cal Of4h6]} Bg5 {[%emt 0:21:28]} 15. Bh2 {[%emt 0:05:08] White has more active pieces. The black rooks are badly placed.} f5 {[%emt 0:01:36]} 16. exf6 {[%emt 0:10:35]} (16. Ne2 {simplifies} Qe8 17. Qxe8 Raxe8 18. Nd4) 16... Bf7 {[%emt 0:00:28]} 17. Qg4 {[%emt 0:10:09] Hoping for fxg7.} Qxf6 {[%emt 0:04:09]} 18. e4 {[%emt 0:08:14]} Be6 {[%emt 0:02:56]} 19. Qe2 {[%emt 0:00:46] e5 would be deadly.} Qe7 {[%emt 0:13:18]} 20. exd5 {[%emt 0:07:14][%mdl 64] Remove Defender} Nxd5 {[%emt 0:00:42]} 21. Rae1 {[%emt 0:01:39] Black must now prevent Nxd5.} Rae8 {[%emt 0:01:15]} 22. Qh5 {[%emt 0:06:59] Threatens to win with Nxd5.} Nxc3 {[%emt 0:18:53]} 23. Qg6 {[%emt 0:09:01] Threatening mate with Qh7+.} (23. bxc3 $5 {[%cal Rh5g6]} Qf6 24. Be5 $14) 23... Bf5 $1 {[%emt 0:01:17]} 24. Bxf5 {[%emt 0:00:18]} Qxe1 {[%emt 0:00:08]} 25. Qh7+ {[%emt 0:00:26]} Kf7 {[%emt 0:00:01]} 26. Qg6+ {[%emt 0:00:35]} Kg8 {[%emt 0:00:07]} 27. Qh7+ {[%emt 0:00:10]} Kf7 {[%emt 0:00:01] ( -> ...Ne2+)} 28. bxc3 {[%emt 0:00:08] aiming for Bg6+.} Qxc3 {[%emt 0:01:52]} 29. Qg6+ {[%emt 0:02:50]} Kg8 {[%emt 0:00:01]} 30. Qh7+ {[%emt 0:00:21]} Kf7 {[%emt 0:00:01]} 31. Bg6+ {[%emt 0:00:58][%cal Bf5g6,Bg6h5,Bh5g4][%mdl 32]} Ke7 {[%emt 0:01:21]} (31... Kf6 $11 {remains equal.} 32. Bh5 Re6) 32. Bh5 $1 $16 {[%emt 0:00:13] A strong pair of Bishops.} Qd4 {[%emt 0:02:46][%mdl 8192] [#] Wards off Rd1. This move loses the game for Black.} 33. Rd1 $1 $18 {[%emt 0:06:33]} Bd2 {[%emt 0:09:59] [#]} (33... Qxf2+ $142 34. Kh1 Qf1+ 35. Rxf1 Rxf1+ 36. Bg1 Rd8 37. Qxg7+ Kd6) 34. Rxd2 $1 {[%emt 0:00:00][%mdl 64] Deflection} Qxd2 {[%emt 0:00:02]} 35. Qxg7+ {[%emt 0:00:00] White mates.} Ke6 {[%emt 0:00:02]} 36. Qe5+ {[%emt 0:00:00]} (36. Bxe8 $2 Qe1#) 36... Kd7 {[%emt 0:00:05]} 37. Bg4+ {[%emt 0:00:03]} ({Inferior is} 37. Bxe8+ Rxe8 38. Qc7+ Ke6 39. Qe5+ Kd7 40. Qc7+ Ke6 41. Qe5+ Kd7 $11) 37... Re6 {[%emt 0:00:06]} 38. Qc7+ {[%emt 0:00:14]} Ke8 {[%emt 0:00:02]} 39. Bh5+ {[%emt 0:00:04]} (39. Bxe6 $2 Qe1#) 39... Rf7 {[%emt 0:00:07]} 40. Qxf7+ {[%emt 0:00:05]} Kd8 {[%emt 0:00:03]} 41. Qc7# {[%emt 0:00:05] Beautiful play by Khanin!   Weighted Error Value: White=0.06 (flawless) /Black=0.45} 1-0

[Event "10th Cherry Blossom Classic 2023"]
[Site "Dulles"]
[Date "2023.05.28"]
[Round "5.6"]
[White "Bora, Safal"]
[Black "Matviishen, Viktor"]
[Result "1/2-1/2"]
[ECO "D41"]
[WhiteElo "2462"]
[BlackElo "2538"]
[Annotator "TA"]
[PlyCount "80"]
[EventDate "2023.05.24"]
[EventType "swiss"]
[EventCountry "USA"]
[SourceTitle "playchess.com"]
[Source "ChessBase"]
[SourceQuality "1"]
[TimeControl "5400+30"]

{[%evp 21,79,22,27,9,18,8,18,0,20,0,9,0,12,7,13,0,8,12,20,21,72,71,62,56,57,26,19,19,86,81,63,18,8,0,0,0,0,0,0,0,0,0,0,0,0,0,0,0,0,0,0,0,0,0,0,0,0,0,0,0]} 1. c4 {[%emt 0:04:58]} c5 {[%emt 0:00:26]} 2. Nc3 {[%emt 0:00:14]} Nf6 {[%emt 0:00:05]} 3. Nf3 {[%emt 0:00:21]} d5 {[%emt 0:00:19]} 4. cxd5 {[%emt 0:00:05]} Nxd5 {[%emt 0:00:03]} 5. d4 {[%emt 0:00:39]} e6 {[%emt 0:00:39]} 6. e4 {[%emt 0:03:11]} Nxc3 {[%emt 0:00:05]} 7. bxc3 {[%emt 0:00:03]} cxd4 {[%emt 0:00:03]} 8. cxd4 {[%emt 0:00:05]} Bb4+ {[%emt 0:00:02]} 9. Bd2 {[%emt 0:00:05]} Bxd2+ {[%emt 0:00:03]} 10. Qxd2 {[%emt 0:00:04]} O-O {[%emt 0:00:06]} 11. Bc4 {[%emt 0:02:43]} b6 {[%emt 0:01:59]} 12. O-O {[%emt 0:01:08] D41: Queen's Gambit Declined: Semi-Tarrasch with 5 cxd5.} Bb7 {[%emt 0:00:04]} 13. Rfe1 {[%emt 0:02:36]} Nc6 {[%emt 0:00:37]} 14. Rac1 {[%emt 0:03:16]} Rc8 {[%emt 0:00:18] [#]} 15. h4 $146 {[%emt 0:01:53]} (15. d5 {feels hotter.} Na5 16. dxe6 Nxc4 17. exf7+ Kxf7 18. Rxc4 Rxc4 19. Ne5+) ({Predecessor:} 15. Bb5 Qd6 16. Bxc6 Bxc6 17. Ne5 Bb7 18. f3 Rxc1 19. Rxc1 Rd8 20. Rd1 Qa3 21. Qc1 Qxc1 22. Rxc1 {0-1 Walid,S (1745)-Boulaares,A (1735) Arab-ch U18 Baghdad 2022 (7)}) 15... h6 {[%emt 0:01:52]} 16. h5 {[%emt 0:02:18]} (16. d5 {looks sharper.} exd5 17. Bxd5 Re8 18. g3) 16... Qd6 {[%emt 0:09:59]} 17. d5 {[%emt 0:09:42]} exd5 {[%emt 0:01:12]} 18. Bxd5 {[%emt 0:02:37]} Qe7 {[%emt 0:00:21]} 19. Rcd1 {[%emt 0:15:47]} Rcd8 {[%emt 0:13:16]} 20. Qc3 {[%emt 0:07:16]} Na5 {[%emt 0:01:19] [#]} (20... Rc8 $11 {remains equal.}) 21. Ne5 $1 $16 {[%emt 0:05:22][%cal Bf3e5,Be5c6,Bc6d4][%mdl 32] Strongly threatening Ng6. White has more active pieces.} Bxd5 {[%emt 0:09:17]} 22. exd5 {[%emt 0:00:10] Nc6 is the strong threat.} ({But not} 22. Rxd5 Rfe8 $11) 22... Qd6 {[%emt 0:05:07] Black is weak on the light squares} 23. Qf3 {[%emt 0:02:12]} Rde8 {[%emt 0:03:17]} 24. Nc6 {[%emt 0:03:37]} a6 {[%emt 0:18:18]} (24... Rxe1+ $11 {keeps the balance.} 25. Rxe1 Nxc6 26. dxc6 Rc8) 25. Nd4 {[%emt 0:04:42] [#] Threatens to win with Nf5.} Qb4 {[%emt 0:05:26]} 26. Rxe8 {[%emt 0:07:34]} (26. Re2 $5 {[%cal Rd4f5]}) 26... Rxe8 {[%emt 0:00:00] The position is equal.} 27. Kh2 {[%emt 0:00:54] Hoping for Nf5.} Nc4 {[%emt 0:01:13] White must now prevent ...Nb2.} 28. Nf5 {[%emt 0:05:28]} Nd6 {[%emt 0:03:59]} 29. Nxd6 {[%emt 0:05:39]} Qxd6+ $11 {[%emt 0:01:41][%mdl 4096] Endgame KQR-KQR} 30. g3 {[%emt 0:00:05]} Re5 {[%emt 0:00:13]} 31. Kg2 {[%emt 0:00:14]} b5 {[%emt 0:01:05]} 32. Rd2 {[%emt 0:00:17]} b4 {[%emt 0:00:47]} 33. Qf4 {[%emt 0:02:19]} a5 {[%emt 0:00:08]} 34. Rd4 {[%emt 0:02:03]} f6 {[%emt 0:01:05]} 35. Qc1 {[%emt 0:01:17]} Qd7 {[%emt 0:15:56]} (35... Rxd5 $2 36. Qc4 $18) 36. Qd1 {[%emt 0:00:39]} Qd6 {[%emt 0:00:09]} 37. Qa4 {[%emt 0:00:57]} Qc5 {[%emt 0:05:13]} 38. Qd1 {[%emt 0:00:42]} Qd6 {[%emt 0:00:41]} 39. Qa4 {[%emt 0:01:24]} Qc5 {[%emt 0:00:06]} 40. Qd1 {[%emt 0:03:03]} Qd6 {[%emt 0:00:13] Weighted Error Value: White=0.06 (flawless) /Black=0.09 (flawless)} 1/2-1/2